[Event "Swedish Chess Championship 2021: Mastarklassen-Elit"]
[Site "Scandic Helsingborg Nord, Florettgatan 41, Helsingborg, Sweden"]
[Date "2021.07.11"]
[Round "9.1"]
[White "Johansson, Thomas"]
[Black "Jogstad, Martin"]
[Result "0-1"]
[TimeControl "90 minutes for 40 moves + 30 minutes for the rest of the game + 30 seconds per move from move one."]
[BlackTitle "FM"]
[WhiteFideId "1702998"]
[BlackFideId "1715364"]
[WhiteElo "2254"]
[BlackElo "2301"]

1. e4 {[%clk 01:30:56]} {[%emt 00:00:04]} e6 {[%clk 01:30:38]} {[%emt
00:00:52]} 2. b3 {[%clk 01:31:19]} {[%emt 00:00:07]} d5 {[%clk 01:30:54]}
{[%emt 00:00:12]} 3. Bb2 {[%clk 01:31:43]} {[%emt 00:00:07]} Nc6 {[%clk
01:31:15]} {[%emt 00:00:09]} 4. Bb5 {[%clk 01:29:03]} {[%emt 00:03:10]} Nge7
{[%clk 01:31:26]} {[%emt 00:00:18]} 5. e5 {[%clk 01:27:08]} {[%emt 00:02:26]}
Bd7 {[%clk 01:29:13]} {[%emt 00:02:43]} 6. Qe2 {[%clk 01:24:39]} {[%emt
00:02:59]} Ng6 {[%clk 01:29:26]} {[%emt 00:00:17]} 7. d4 {[%clk 01:14:40]}
{[%emt 00:10:29]} a6 {[%clk 01:28:47]} {[%emt 00:01:09]} 8. Bxc6 {[%clk
01:13:58]} {[%emt 00:01:12]} Bxc6 {[%clk 01:28:37]} {[%emt 00:00:41]} 9. Nd2
{[%clk 01:13:19]} {[%emt 00:01:09]} Bb5 {[%clk 01:23:53]} {[%emt 00:05:13]} 10.
Qg4 {[%clk 01:08:41]} {[%emt 00:05:08]} a5 {[%clk 01:20:06]} {[%emt 00:04:18]}
11. a4 {[%clk 01:07:44]} {[%emt 00:01:27]} Ba6 {[%clk 01:19:55]} {[%emt
00:00:41]} 12. f4 {[%clk 01:00:21]} {[%emt 00:07:53]} h5 {[%clk 01:19:02]}
{[%emt 00:01:24]} 13. Qg3 {[%clk 00:54:21]} {[%emt 00:06:29]} Nh4 {[%clk
01:16:44]} {[%emt 00:02:47]} 14. Ngf3 {[%clk 00:49:35]} {[%emt 00:05:17]} Nf5
{[%clk 01:16:48]} {[%emt 00:00:26]} 15. Qf2 {[%clk 00:49:59]} {[%emt 00:00:07]}
Rc8 {[%clk 01:16:20]} {[%emt 00:00:57]} 16. c4 {[%clk 00:46:17]} {[%emt
00:04:12]} c5 {[%clk 01:13:30]} {[%emt 00:03:21]} 17. O-O {[%clk 00:44:49]}
{[%emt 00:01:58]} cxd4 {[%clk 01:10:52]} {[%emt 00:03:07]} 18. cxd5 {[%clk
00:40:14]} {[%emt 00:05:05]} Qxd5 {[%clk 01:04:14]} {[%emt 00:07:07]} 19. Rfc1
{[%clk 00:40:03]} {[%emt 00:00:41]} Bc5 {[%clk 01:03:19]} {[%emt 00:01:25]} 20.
Rxc5 {[%clk 00:39:21]} {[%emt 00:01:13]} Rxc5 {[%clk 01:02:17]} {[%emt
00:01:31]} 21. Nxd4 {[%clk 00:37:26]} {[%emt 00:02:26]} Nxd4 {[%clk 00:59:12]}
{[%emt 00:03:34]} 22. Bxd4 {[%clk 00:36:56]} {[%emt 00:01:01]} Rc2 {[%clk
00:58:49]} {[%emt 00:00:53]} 23. Qe3 {[%clk 00:37:05]} {[%emt 00:00:21]} O-O
{[%clk 00:55:57]} {[%emt 00:03:21]} 24. Re1 {[%clk 00:37:29]} {[%emt 00:00:07]}
Rfc8 {[%clk 00:41:16]} {[%emt 00:15:11]} 25. Nf3 {[%clk 00:36:14]} {[%emt
00:01:44]} Ra2 {[%clk 00:39:39]} {[%emt 00:02:08]} 26. Rc1 {[%clk 00:27:29]}
{[%emt 00:09:15]} Rcc2 {[%clk 00:36:04]} {[%emt 00:04:04]} 27. Rxc2 {[%clk
00:27:25]} {[%emt 00:00:35]} Rxc2 {[%clk 00:36:31]} {[%emt 00:00:03]} 28. f5
{[%clk 00:27:24]} {[%emt 00:00:32]} exf5 {[%clk 00:32:26]} {[%emt 00:04:34]} 29.
Qg5 {[%clk 00:27:39]} {[%emt 00:00:15]} f4 {[%clk 00:29:57]} {[%emt 00:02:59]}
30. Qxf4 {[%clk 00:22:12]} {[%emt 00:05:58]} Qxb3 {[%clk 00:23:32]} {[%emt
00:06:54]} 31. h4 {[%clk 00:20:56]} {[%emt 00:01:46]} Qd3 {[%clk 00:02:49]}
{[%emt 00:21:13]} 32. Ng5 {[%clk 00:19:08]} {[%emt 00:02:17]} Bc4 {[%clk
00:02:32]} {[%emt 00:00:48]} 33. e6 {[%clk 00:18:51]} {[%emt 00:00:47]} Bxe6
{[%clk 00:02:44]} {[%emt 00:00:18]} 34. Qe5 {[%clk 00:15:30]} {[%emt 00:03:51]}
Qg6 {[%clk 00:02:46]} {[%emt 00:00:28]} 35. Bc3 {[%clk 00:14:39]} {[%emt
00:01:21]} Rxc3 {[%clk 00:01:47]} {[%emt 00:01:29]} 36. Qxc3 {[%clk 00:15:01]}
{[%emt 00:00:07]} Qb1+ {[%clk 00:01:35]} {[%emt 00:00:43]} 37. Kh2 {[%clk
00:15:22]} {[%emt 00:00:08]} Qb4 {[%clk 00:00:49]} {[%emt 00:01:16]} 38. Qg3
{[%clk 00:13:39]} {[%emt 00:02:14]} Qg4 {[%clk 00:00:35]} {[%emt 00:00:44]} 39.
Qb8+ {[%clk 00:13:01]} {[%emt 00:01:08]} Bc8 {[%clk 00:00:59]} {[%emt
00:00:06]} 40. Nf3 {[%clk 00:11:31]} {[%emt 00:02:00]} f6 {[%clk 00:00:34]}
{[%emt 00:00:56]} 41. Qc7 {[%clk 00:08:06]} {[%emt 00:03:54]} Qf5 {[%clk
00:29:15]} {[%emt 00:01:47]} 42. Kh1 {[%clk 00:36:48]} {[%emt 00:01:48]} Bd7
{[%clk 00:23:35]} {[%emt 00:06:11]} 43. Qxb7 {[%clk 00:31:08]} {[%emt
00:06:10]} Bxa4 {[%clk 00:23:09]} {[%emt 00:00:56]} 44. Qc7 {[%clk 00:28:24]}
{[%emt 00:03:14]} Kh7 {[%clk 00:21:11]} {[%emt 00:02:26]} 45. Qf7 {[%clk
00:24:22]} {[%emt 00:04:32]} Bd7 {[%clk 00:18:21]} {[%emt 00:03:20]} 46. Kg1
{[%clk 00:21:54]} {[%emt 00:02:59]} Qc5+ {[%clk 00:16:11]} {[%emt 00:02:39]} 47.
Kh1 {[%clk 00:20:48]} {[%emt 00:01:37]} Bg4 {[%clk 00:15:48]} {[%emt 00:00:54]}
48. Qe8 {[%clk 00:18:35]} {[%emt 00:02:43]} Qc1+ {[%clk 00:14:03]} {[%emt
00:02:15]} 49. Ng1 {[%clk 00:13:06]} {[%emt 00:05:59]} Qf4 {[%clk 00:13:55]}
{[%emt 00:00:37]} 50. Qb5 {[%clk 00:11:08]} {[%emt 00:02:29]} a4 {[%clk
00:13:13]} {[%emt 00:01:12]} 51. Qa5 {[%clk 00:10:37]} {[%emt 00:01:01]} Qe4
{[%clk 00:11:35]} {[%emt 00:02:06]} 52. Nh3 {[%clk 00:10:19]} {[%emt 00:00:50]}
Bxh3 {[%clk 00:11:11]} {[%emt 00:00:54]} 53. Qxh5+ {[%clk 00:10:41]} {[%emt
00:00:08]} Kg8 {[%clk 00:11:34]} {[%emt 00:00:06]} 0-1

[Event "Swedish Chess Championship 2021: Mastarklassen-Elit"]
[Site "Scandic Helsingborg Nord, Florettgatan 41, Helsingborg, Sweden"]
[Date "2021.07.11"]
[Round "9.2"]
[White "Ernst, Thomas"]
[Black "Thorn, Eric"]
[Result "1-0"]
[TimeControl "90 minutes for 40 moves + 30 minutes for the rest of the game + 30 seconds per move from move one."]
[WhiteTitle "GM"]
[BlackTitle "FM"]
[WhiteFideId "1700065"]
[BlackFideId "1710729"]
[WhiteElo "2310"]
[BlackElo "2271"]

1. e4 {[%clk 01:30:55]} {[%emt 00:00:04]} c6 {[%clk 01:30:54]} {[%emt
00:00:06]} 2. d4 {[%clk 01:31:16]} {[%emt 00:00:10]} d5 {[%clk 01:31:12]}
{[%emt 00:00:12]} 3. Nd2 {[%clk 01:31:37]} {[%emt 00:00:09]} dxe4 {[%clk
01:31:35]} {[%emt 00:00:07]} 4. Nxe4 {[%clk 01:32:03]} {[%emt 00:00:04]} Nf6
{[%clk 01:31:45]} {[%emt 00:00:20]} 5. Nxf6+ {[%clk 01:32:15]} {[%emt
00:00:18]} exf6 {[%clk 01:32:09]} {[%emt 00:00:06]} 6. c3 {[%clk 01:32:09]}
{[%emt 00:00:35]} Bd6 {[%clk 01:32:31]} {[%emt 00:00:08]} 7. Bd3 {[%clk
01:32:30]} {[%emt 00:00:09]} O-O {[%clk 01:32:27]} {[%emt 00:00:34]} 8. Qc2
{[%clk 01:32:40]} {[%emt 00:00:19]} Re8+ {[%clk 01:32:53]} {[%emt 00:00:05]} 9.
Ne2 {[%clk 01:33:00]} {[%emt 00:00:10]} g6 {[%clk 01:33:17]} {[%emt 00:00:06]}
10. h4 {[%clk 01:30:30]} {[%emt 00:02:59]} Be6 {[%clk 01:33:40]} {[%emt
00:00:08]} 11. h5 {[%clk 01:29:51]} {[%emt 00:01:08]} f5 {[%clk 01:34:05]}
{[%emt 00:00:06]} 12. Kf1 {[%clk 01:22:05]} {[%emt 00:08:14]} Nd7 {[%clk
01:31:39]} {[%emt 00:02:57]} 13. Nf4 {[%clk 01:21:39]} {[%emt 00:00:55]} Qf6
{[%clk 01:17:22]} {[%emt 00:14:48]} 14. hxg6 {[%clk 01:20:37]} {[%emt
00:01:33]} fxg6 {[%clk 01:15:27]} {[%emt 00:02:25]} 15. Nxe6 {[%clk 01:18:51]}
{[%emt 00:02:16]} Qxe6 {[%clk 01:13:31]} {[%emt 00:02:27]} 16. Qb3 {[%clk
01:15:12]} {[%emt 00:04:08]} Qxb3 {[%clk 01:08:18]} {[%emt 00:05:43]} 17. axb3
{[%clk 01:15:36]} {[%emt 00:00:05]} h5 {[%clk 01:04:07]} {[%emt 00:04:40]} 18.
Rh3 {[%clk 01:13:20]} {[%emt 00:02:46]} Nf6 {[%clk 00:52:00]} {[%emt 00:12:39]}
19. Re3 {[%clk 01:13:36]} {[%emt 00:00:14]} Ng4 {[%clk 00:51:58]} {[%emt
00:00:32]} 20. Rxe8+ {[%clk 01:11:45]} {[%emt 00:02:21]} Rxe8 {[%clk 00:52:24]}
{[%emt 00:00:04]} 21. Bd2 {[%clk 01:11:34]} {[%emt 00:00:39]} a6 {[%clk
00:47:24]} {[%emt 00:05:31]} 22. Re1 {[%clk 01:10:03]} {[%emt 00:02:00]} Rxe1+
{[%clk 00:32:10]} {[%emt 00:15:45]} 23. Kxe1 {[%clk 01:08:55]} {[%emt
00:01:38]} Kf7 {[%clk 00:23:06]} {[%emt 00:09:35]} 24. Ke2 {[%clk 01:03:24]}
{[%emt 00:06:01]} Nf6 {[%clk 00:20:29]} {[%emt 00:03:07]} 25. f4 {[%clk
00:57:24]} {[%emt 00:06:29]} h4 {[%clk 00:15:50]} {[%emt 00:05:09]} 26. Kf3
{[%clk 00:57:12]} {[%emt 00:00:41]} Nh5 {[%clk 00:15:28]} {[%emt 00:00:53]} 27.
Be3 {[%clk 00:49:05]} {[%emt 00:08:37]} Ke6 {[%clk 00:11:09]} {[%emt 00:04:51]}
28. Bc4+ {[%clk 00:48:51]} {[%emt 00:00:44]} Ke7 {[%clk 00:10:39]} {[%emt
00:00:59]} 29. Bd3 {[%clk 00:48:51]} {[%emt 00:00:31]} Ke6 {[%clk 00:08:32]}
{[%emt 00:02:37]} 30. Bc4+ {[%clk 00:48:58]} {[%emt 00:00:22]} Ke7 {[%clk
00:08:50]} {[%emt 00:00:13]} 31. Bd3 {[%clk 00:49:13]} {[%emt 00:00:15]} Bc7
{[%clk 00:06:36]} {[%emt 00:02:43]} 32. Bc4 {[%clk 00:46:54]} {[%emt 00:02:48]}
Kf6 {[%clk 00:04:26]} {[%emt 00:02:41]} 33. Bd3 {[%clk 00:46:05]} {[%emt
00:01:19]} Ke6 {[%clk 00:03:52]} {[%emt 00:01:05]} 34. Bc4+ {[%clk 00:46:03]}
{[%emt 00:00:31]} Kf6 {[%clk 00:03:43]} {[%emt 00:00:40]} 35. Bd3 {[%clk
00:46:15]} {[%emt 00:00:17]} b5 {[%clk 00:03:15]} {[%emt 00:00:58]} 36. c4
{[%clk 00:43:44]} {[%emt 00:03:01]} Ke6 {[%clk 00:02:39]} {[%emt 00:01:06]} 37.
d5+ {[%clk 00:42:36]} {[%emt 00:01:38]} Kd7 {[%clk 00:02:18]} {[%emt 00:00:52]}
38. Bd2 {[%clk 00:38:56]} {[%emt 00:04:08]} Bd6 {[%clk 00:01:43]} {[%emt
00:01:06]} 39. Be3 {[%clk 00:38:17]} {[%emt 00:01:09]} Bc7 {[%clk 00:02:01]}
{[%emt 00:00:12]} 40. Bd2 {[%clk 00:38:26]} {[%emt 00:00:21]} Bd6 {[%clk
00:02:02]} {[%emt 00:00:29]} 41. Be3 {[%clk 00:38:16]} {[%emt 00:00:39]} cxd5
{[%clk 00:19:46]} {[%emt 00:12:46]} 42. cxb5 {[%clk 01:08:25]} {[%emt
00:00:21]} a5 {[%clk 00:20:13]} {[%emt 00:00:03]} 43. Bd2 {[%clk 01:06:17]}
{[%emt 00:02:36]} Bc7 {[%clk 00:13:32]} {[%emt 00:07:12]} 44. Be3 {[%clk
01:05:55]} {[%emt 00:00:52]} d4 {[%clk 00:12:46]} {[%emt 00:01:17]} 45. Bd2
{[%clk 00:57:18]} {[%emt 00:09:06]} Kd6 {[%clk 00:07:55]} {[%emt 00:05:22]} 46.
Bc4 {[%clk 00:50:56]} {[%emt 00:06:51]} Nf6 {[%clk 00:07:30]} {[%emt 00:00:56]}
47. Be1 {[%clk 00:50:08]} {[%emt 00:01:16]} Ne4 {[%clk 00:07:10]} {[%emt
00:00:52]} 48. Bxh4 {[%clk 00:49:42]} {[%emt 00:00:56]} a4 {[%clk 00:04:24]}
{[%emt 00:03:17]} 49. Bf7 {[%clk 00:39:04]} {[%emt 00:11:06]} axb3 {[%clk
00:03:47]} {[%emt 00:01:08]} 50. Bxg6 {[%clk 00:38:21]} {[%emt 00:01:13]} Nd2+
{[%clk 00:01:45]} {[%emt 00:02:32]} 51. Ke2 {[%clk 00:38:16]} {[%emt 00:00:35]}
Nc4 {[%clk 00:01:51]} {[%emt 00:00:24]} 52. Kd3 {[%clk 00:33:16]} {[%emt
00:05:29]} Nxb2+ {[%clk 00:00:56]} {[%emt 00:01:27]} 53. Kxd4 {[%clk 00:33:35]}
{[%emt 00:00:10]} Ke6 {[%clk 00:00:36]} {[%emt 00:00:51]} 54. Kc3 {[%clk
00:32:47]} {[%emt 00:01:17]} Nd1+ {[%clk 00:00:37]} {[%emt 00:00:29]} 55. Kxb3
{[%clk 00:33:06]} {[%emt 00:00:12]} Bxf4 {[%clk 00:00:51]} {[%emt 00:00:16]} 56.
Bh5 {[%clk 00:32:41]} {[%emt 00:00:52]} Ne3 {[%clk 00:00:48]} {[%emt 00:00:35]}
57. Bf3 {[%clk 00:33:01]} {[%emt 00:00:08]} Kd6 {[%clk 00:00:47]} {[%emt
00:00:32]} 58. Kb4 {[%clk 00:29:48]} {[%emt 00:03:42]} Nc2+ {[%clk 00:00:48]}
{[%emt 00:00:31]} 59. Ka5 {[%clk 00:29:33]} {[%emt 00:00:44]} Bd2+ {[%clk
00:00:44]} {[%emt 00:00:34]} 60. Ka6 {[%clk 00:29:24]} {[%emt 00:00:36]} Nb4+
{[%clk 00:00:36]} {[%emt 00:00:42]} 61. Ka7 {[%clk 00:25:48]} {[%emt 00:04:05]}
Be3+ {[%clk 00:00:42]} {[%emt 00:00:25]} 62. b6 {[%clk 00:25:50]} {[%emt
00:00:28]} Nd3 {[%clk 00:00:38]} {[%emt 00:00:34]} 63. Bd8 {[%clk 00:25:11]}
{[%emt 00:01:09]} Kd7 {[%clk 00:00:49]} {[%emt 00:00:20]} 64. Bc7 {[%clk
00:25:02]} {[%emt 00:00:37]} Bd4 {[%clk 00:00:33]} {[%emt 00:00:47]} 65. Ka6
{[%clk 00:23:42]} {[%emt 00:01:48]} Nc5+ {[%clk 00:00:33]} {[%emt 00:00:31]} 66.
Kb5 {[%clk 00:23:46]} {[%emt 00:00:26]} Ne6 {[%clk 00:00:34]} {[%emt 00:00:30]}
67. Bc6+ {[%clk 00:23:43]} {[%emt 00:00:31]} Kc8 {[%clk 00:00:37]} {[%emt
00:00:30]} 68. Bd6 {[%clk 00:23:20]} {[%emt 00:00:50]} Nd8 {[%clk 00:00:39]}
{[%emt 00:00:31]} 69. Bf4 {[%clk 00:21:48]} {[%emt 00:02:00]} Nb7 {[%clk
00:00:36]} {[%emt 00:00:35]} 70. Bd5 {[%clk 00:21:14]} {[%emt 00:01:00]} Nc5
{[%clk 00:00:33]} {[%emt 00:00:37]} 71. Kc6 {[%clk 00:20:56]} {[%emt 00:00:46]}
Na6 {[%clk 00:00:32]} {[%emt 00:00:32]} 72. b7+ {[%clk 00:19:46]} {[%emt
00:01:40]} Kd8 {[%clk 00:00:50]} {[%emt 00:00:13]} 73. Bc4 {[%clk 00:19:22]}
{[%emt 00:00:52]} Nb4+ {[%clk 00:00:39]} {[%emt 00:00:43]} 74. Kb5 {[%clk
00:19:36]} {[%emt 00:00:15]} 1-0

[Event "Swedish Chess Championship 2021: Mastarklassen-Elit"]
[Site "Scandic Helsingborg Nord, Florettgatan 41, Helsingborg, Sweden"]
[Date "2021.07.11"]
[Round "9.3"]
[White "Furhoff, Johan"]
[Black "Nikolic, Vladan"]
[Result "1-0"]
[TimeControl "90 minutes for 40 moves + 30 minutes for the rest of the game + 30 seconds per move from move one."]
[WhiteTitle "IM"]
[WhiteFideId "1701797"]
[BlackFideId "1710702"]
[WhiteElo "2324"]
[BlackElo "2222"]

1. e4 {[%clk 01:30:58]} e5 {[%clk 01:30:56]} {[%emt 00:00:05]} 2. Nf3 {[%clk
01:31:24]} {[%emt 00:00:03]} Nc6 {[%clk 01:31:22]} {[%emt 00:00:04]} 3. Bb5
{[%clk 01:31:47]} {[%emt 00:00:06]} a6 {[%clk 01:31:39]} {[%emt 00:00:14]} 4.
Ba4 {[%clk 01:32:13]} {[%emt 00:00:04]} Nf6 {[%clk 01:32:04]} {[%emt 00:00:05]}
5. O-O {[%clk 01:32:35]} {[%emt 00:00:07]} b5 {[%clk 01:32:22]} {[%emt
00:00:13]} 6. Bb3 {[%clk 01:32:59]} {[%emt 00:00:06]} Bc5 {[%clk 01:32:46]}
{[%emt 00:00:06]} 7. c3 {[%clk 01:33:23]} {[%emt 00:00:06]} d6 {[%clk
01:33:10]} {[%emt 00:00:06]} 8. d4 {[%clk 01:33:45]} {[%emt 00:00:08]} Bb6
{[%clk 01:33:34]} {[%emt 00:00:06]} 9. Be3 {[%clk 01:34:08]} {[%emt 00:00:07]}
O-O {[%clk 01:24:57]} {[%emt 00:09:07]} 10. Nbd2 {[%clk 01:33:38]} {[%emt
00:01:00]} h6 {[%clk 01:22:20]} {[%emt 00:03:08]} 11. h3 {[%clk 01:28:22]}
{[%emt 00:05:46]} Re8 {[%clk 01:17:30]} {[%emt 00:05:19]} 12. Re1 {[%clk
01:24:14]} {[%emt 00:04:38]} Na5 {[%clk 01:07:14]} {[%emt 00:10:47]} 13. Bc2
{[%clk 01:20:11]} {[%emt 00:04:33]} c5 {[%clk 01:06:57]} {[%emt 00:00:47]} 14.
d5 {[%clk 01:18:16]} {[%emt 00:02:25]} c4 {[%clk 01:06:57]} {[%emt 00:00:30]}
15. b4 {[%clk 01:17:07]} {[%emt 00:01:39]} cxb3 {[%clk 01:06:05]} {[%emt
00:01:22]} 16. axb3 {[%clk 01:17:15]} {[%emt 00:00:22]} Bd7 {[%clk 01:00:20]}
{[%emt 00:06:15]} 17. Bd3 {[%clk 01:11:14]} {[%emt 00:06:31]} Bxe3 {[%clk
00:56:54]} {[%emt 00:03:56]} 18. Rxe3 {[%clk 01:11:35]} {[%emt 00:00:09]} Qc7
{[%clk 00:57:02]} {[%emt 00:00:21]} 19. Bf1 {[%clk 01:03:44]} {[%emt 00:08:21]}
Reb8 {[%clk 00:55:45]} {[%emt 00:01:47]} 20. Ne1 {[%clk 00:46:45]} {[%emt
00:17:29]} Nb7 {[%clk 00:51:09]} {[%emt 00:05:07]} 21. b4 {[%clk 00:46:10]}
{[%emt 00:01:05]} a5 {[%clk 00:50:48]} {[%emt 00:00:51]} 22. Nb3 {[%clk
00:42:58]} {[%emt 00:03:43]} Nh7 {[%clk 00:43:27]} {[%emt 00:07:50]} 23. Rc1
{[%clk 00:37:28]} {[%emt 00:06:00]} Qb6 {[%clk 00:38:22]} {[%emt 00:05:35]} 24.
Bd3 {[%clk 00:34:42]} {[%emt 00:03:16]} Nf8 {[%clk 00:35:19]} {[%emt 00:03:34]}
25. Kh2 {[%clk 00:34:08]} {[%emt 00:01:03]} Ng6 {[%clk 00:35:20]} {[%emt
00:00:28]} 26. g3 {[%clk 00:33:11]} {[%emt 00:01:28]} Rf8 {[%clk 00:33:50]}
{[%emt 00:02:00]} 27. Qe2 {[%clk 00:27:44]} {[%emt 00:05:57]} Rac8 {[%clk
00:30:47]} {[%emt 00:03:33]} 28. Ng2 {[%clk 00:24:50]} {[%emt 00:03:23]} Rc7
{[%clk 00:24:34]} {[%emt 00:06:43]} 29. f4 {[%clk 00:23:10]} {[%emt 00:02:10]}
Rfc8 {[%clk 00:15:16]} {[%emt 00:09:48]} 30. Qd2 {[%clk 00:22:48]} {[%emt
00:00:52]} axb4 {[%clk 00:14:13]} {[%emt 00:01:34]} 31. cxb4 {[%clk 00:23:03]}
{[%emt 00:00:14]} Rxc1 {[%clk 00:14:34]} {[%emt 00:00:09]} 32. Nxc1 {[%clk
00:23:25]} {[%emt 00:00:09]} Qd4 {[%clk 00:13:50]} {[%emt 00:01:14]} 33. f5
{[%clk 00:19:31]} {[%emt 00:04:24]} Nf8 {[%clk 00:13:47]} {[%emt 00:00:33]} 34.
Ne2 {[%clk 00:15:28]} {[%emt 00:04:32]} Qa1 {[%clk 00:14:11]} {[%emt 00:00:06]}
35. Ne1 {[%clk 00:11:31]} {[%emt 00:04:26]} Nh7 {[%clk 00:12:54]} {[%emt
00:01:49]} 36. Rf3 {[%clk 00:10:17]} {[%emt 00:01:44]} Nd8 {[%clk 00:11:53]}
{[%emt 00:01:31]} 37. Kg2 {[%clk 00:09:40]} {[%emt 00:01:07]} Rc7 {[%clk
00:10:00]} {[%emt 00:02:23]} 38. Rf1 {[%clk 00:09:58]} {[%emt 00:00:11]} Ra7
{[%clk 00:09:31]} {[%emt 00:01:00]} 39. Nc2 {[%clk 00:09:37]} {[%emt 00:00:51]}
Qb2 {[%clk 00:09:23]} {[%emt 00:00:38]} 40. Rd1 {[%clk 00:08:40]} {[%emt
00:01:27]} Nf6 {[%clk 00:03:38]} {[%emt 00:06:16]} 41. g4 {[%clk 00:04:41]}
{[%emt 00:04:29]} Kf8 {[%clk 00:01:53]} {[%emt 00:02:15]} 42. Rc1 {[%clk
00:03:47]} {[%emt 00:01:24]} Ra8 {[%clk 00:26:36]} {[%emt 00:05:47]} 43. Qc3
{[%clk 00:30:09]} {[%emt 00:04:07]} Ra2 {[%clk 00:24:50]} {[%emt 00:02:16]} 44.
Kf3 {[%clk 00:29:09]} {[%emt 00:01:31]} Ke7 {[%clk 00:23:16]} {[%emt 00:02:05]}
45. Ra1 {[%clk 00:26:19]} {[%emt 00:03:19]} g6 {[%clk 00:16:18]} {[%emt
00:07:28]} 46. Rxa2 {[%clk 00:16:27]} {[%emt 00:10:23]} Qxa2 {[%clk 00:16:45]}
{[%emt 00:00:03]} 47. fxg6 {[%clk 00:16:41]} {[%emt 00:00:15]} fxg6 {[%clk
00:17:01]} {[%emt 00:00:13]} 48. Na3 {[%clk 00:16:22]} {[%emt 00:00:50]} Nf7
{[%clk 00:15:51]} {[%emt 00:01:40]} 49. Bb1 {[%clk 00:12:37]} {[%emt 00:04:15]}
Ng5+ {[%clk 00:12:30]} {[%emt 00:03:51]} 50. Ke3 {[%clk 00:12:58]} {[%emt
00:00:10]} Qxd5 {[%clk 00:10:21]} {[%emt 00:02:39]} 51. exd5 {[%clk 00:12:30]}
{[%emt 00:00:58]} Nxd5+ {[%clk 00:10:48]} {[%emt 00:00:03]} 52. Kd2 {[%clk
00:10:48]} {[%emt 00:02:12]} Nxc3 {[%clk 00:11:09]} {[%emt 00:00:08]} 53. Nxc3
{[%clk 00:11:08]} {[%emt 00:00:11]} Nxh3 {[%clk 00:10:43]} {[%emt 00:00:56]} 54.
Bxg6 {[%clk 00:10:31]} {[%emt 00:01:07]} Bxg4 {[%clk 00:10:25]} {[%emt
00:00:48]} 55. Nd5+ {[%clk 00:09:41]} {[%emt 00:01:21]} Ke6 {[%clk 00:09:48]}
{[%emt 00:01:07]} 56. Ne3 {[%clk 00:10:03]} {[%emt 00:00:07]} h5 {[%clk
00:06:56]} {[%emt 00:03:23]} 57. Be4 {[%clk 00:10:21]} {[%emt 00:00:11]} Nf4
{[%clk 00:05:35]} {[%emt 00:01:51]} 58. Nxb5 {[%clk 00:10:37]} {[%emt
00:00:14]} Kd7 {[%clk 00:05:00]} {[%emt 00:01:05]} 59. Nc3 {[%clk 00:09:52]}
{[%emt 00:01:15]} Be6 {[%clk 00:05:09]} {[%emt 00:00:21]} 60. Ncd5 {[%clk
00:08:16]} {[%emt 00:02:06]} Nh3 {[%clk 00:03:02]} {[%emt 00:02:36]} 61. Nf6+
{[%clk 00:07:50]} {[%emt 00:00:55]} Kc7 {[%clk 00:02:53]} {[%emt 00:00:40]} 62.
Nxh5 {[%clk 00:07:54]} {[%emt 00:00:25]} Ng5 {[%clk 00:03:04]} {[%emt
00:00:19]} 63. Bg2 {[%clk 00:07:38]} {[%emt 00:00:46]} Nh7 {[%clk 00:03:00]}
{[%emt 00:00:35]} 64. Ng7 {[%clk 00:07:44]} {[%emt 00:00:24]} Bd7 {[%clk
00:03:00]} {[%emt 00:00:30]} 65. Nd5+ {[%clk 00:07:29]} {[%emt 00:00:45]} Kb8
{[%clk 00:03:03]} {[%emt 00:00:28]} 66. Kc3 {[%clk 00:07:24]} {[%emt 00:00:35]}
Nf8 {[%clk 00:02:28]} {[%emt 00:01:05]} 67. Be4 {[%clk 00:07:25]} {[%emt
00:00:29]} Ka7 {[%clk 00:02:05]} {[%emt 00:00:53]} 68. Kc4 {[%clk 00:07:19]}
{[%emt 00:00:36]} Kb8 {[%clk 00:02:18]} {[%emt 00:00:17]} 69. Nf5 {[%clk
00:07:11]} {[%emt 00:00:38]} Bc6 {[%clk 00:02:00]} {[%emt 00:00:49]} 70. Nxd6
{[%clk 00:07:07]} {[%emt 00:00:33]} Nd7 {[%clk 00:02:20]} {[%emt 00:00:10]} 71.
b5 {[%clk 00:04:54]} {[%emt 00:02:43]} Ba8 {[%clk 00:02:23]} {[%emt 00:00:27]}
72. Kb4 {[%clk 00:04:53]} {[%emt 00:00:31]} Ka7 {[%clk 00:02:10]} {[%emt
00:00:42]} 73. Ka5 {[%clk 00:05:01]} {[%emt 00:00:23]} Nc5 {[%clk 00:01:21]}
{[%emt 00:01:19]} 74. Bg2 {[%clk 00:04:16]} {[%emt 00:01:14]} Kb8 {[%clk
00:01:26]} {[%emt 00:00:26]} 75. b6 {[%clk 00:03:16]} {[%emt 00:01:30]} Nd7
{[%clk 00:01:05]} {[%emt 00:00:50]} 76. Kb5 {[%clk 00:03:29]} {[%emt 00:00:18]}
e4 {[%clk 00:01:07]} {[%emt 00:00:28]} 77. Nb4 {[%clk 00:03:19]} {[%emt
00:00:40]} Bb7 {[%clk 00:00:37]} {[%emt 00:01:00]} 78. Nxb7 {[%clk 00:03:34]}
{[%emt 00:00:15]} e3 {[%clk 00:00:32]} {[%emt 00:00:35]} 79. Nd6 {[%clk
00:03:36]} {[%emt 00:00:28]} 1-0